lending/lending_fUSD_20240110
["ID","MTS","AMOUNT","RATE_DAILY","PERIOD"]
[311140236,1704929461363,-250.0,0.00039,2]
[311140237,1704929461373,-5800.0,0.00039,2]
[311140238,1704929461383,-300.0,0.00039008,2]
[311140239,1704929461392,-150.0,0.00039026,2]
[311140240,1704929461402,-246.77830282,0.0003905,30]
[311140241,1704929461411,-22456.11757494,0.00039051,2]
[311140242,1704929461420,-300.0,0.00039069,2]
[311140243,1704929461430,-9208.50091281,0.00039078,2]
[311140244,1704929461439,-1000.0,0.000391,30]
[311140245,1704929461448,-3000.0,0.000391,21]
[311140246,1704929461457,-200.0,0.000391,2]
[311140247,1704929461466,-150.0,0.000391,14]
[311140248,1704929461476,-233.186151,0.000391,2]
[311140249,1704929461485,-1297.0789914,0.000391,2]
[311140250,1704929461495,-1297.0789914,0.000391,2]
[311140251,1704929461505,-3000.0,0.0003911,21]
[311140252,1704929461514,-5461.490317,0.0003912,22]
[311140253,1704929461524,-504.45407,0.0003912,2]
[311140254,1704929461534,-965.8947818,0.00039137,2]
[311140255,1704929461544,-1424.67234086,0.00039151,2]
[311140256,1704929461554,-253.15883975,0.00039177,2]
[311140257,1704929461564,-150.0,0.00039177,2]
[311140258,1704929461573,-500.0,0.00039178,4]
[311140259,1704929461583,-500.0,0.00039178,4]
[311140260,1704929461594,-500.0,0.00039178,2]
[311140261,1704929461604,-235.83,0.00039178,4]
[311140262,1704929461613,-500.0,0.00039178,4]
[311140263,1704929461622,-500.0,0.00039178,4]
[311140264,1704929461632,-550.5,0.00039178,4]
[311140265,1704929461641,-500.0,0.00039178,4]
[311140266,1704929461651,-500.0,0.00039178,4]
[311140267,1704929461660,-643.95,0.00039178,4]
[311140268,1704929461669,-302.58,0.00039178,4]
[311140269,1704929461678,-251.24,0.00039178,4]
[311140270,1704929461688,-581.31,0.00039178,4]
[311140271,1704929461697,-500.0,0.00039178,4]
[311140272,1704929461706,-500.0,0.00039178,4]
[311140273,1704929461716,-431.34,0.00039178,4]
[311140274,1704929461725,-969.81,0.00039178,4]
[311140275,1704929461734,-500.0,0.00039178,4]
[311140276,1704929461744,-163.83103556,0.00039178,4]
[311140277,1704929461754,-500.0,0.00039178,4]
[311140278,1704929461764,-500.0,0.00039178,4]
[311140279,1704929461773,-500.0,0.00039178,4]
[311140280,1704929461782,-248.32,0.00039178,4]
[311140281,1704929461792,-447.61,0.00039178,4]
[311140282,1704929461804,-599.99,0.00039178,4]
[311140283,1704929461815,-460.09,0.00039178,4]
[311140284,1704929461826,-500.0,0.00039178,4]
[311140285,1704929461835,-500.0,0.00039178,4]
[311140286,1704929461846,-500.0,0.00039178,4]
[311140287,1704929461856,-500.0,0.00039178,4]
[311140288,1704929461866,-500.0,0.00039178,4]
[311140289,1704929461988,-500.0,0.00039178,4]
[311140290,1704929461998,-241.82242996,0.00039178,4]
[311140291,1704929462009,-500.0,0.00039178,4]
[311140292,1704929462019,-500.0,0.00039178,4]
[311140293,1704929462029,-500.0,0.00039178,4]
[311140294,1704929462039,-500.0,0.00039178,2]
[311140295,1704929462048,-500.0,0.00039178,4]
[311140296,1704929462067,-500.0,0.00039178,4]
[311140297,1704929462078,-496.14420993,0.00039178,4]
[311140298,1704929462087,-500.0,0.00039178,4]
[311140299,1704929462097,-500.0,0.00039178,4]
[311140300,1704929462107,-500.0,0.00039178,4]
[311140301,1704929462117,-2076.04,0.00039178,4]
[311140302,1704929462127,-500.0,0.00039178,4]
[311140303,1704929462137,-500.0,0.00039178,4]
[311140304,1704929462146,-500.0,0.00039178,4]
[311140305,1704929462156,-500.0,0.00039178,4]
[311140306,1704929462165,-1000.0,0.00039178,2]
[311140307,1704929462175,-500.0,0.00039178,4]
[311140308,1704929462184,-500.0,0.00039178,4]
[311140309,1704929462194,-500.0,0.00039178,4]
[311140310,1704929462203,-500.0,0.00039178,4]
[311140311,1704929462214,-226.69,0.00039178,4]
[311140312,1704929462223,-500.0,0.00039178,4]
[311140313,1704929462232,-500.0,0.00039178,4]
[311140314,1704929462242,-500.0,0.00039178,4]
[311140315,1704929462251,-429.75,0.00039178,4]
[311140316,1704929462260,-500.0,0.00039178,4]
[311140317,1704929462270,-500.0,0.00039178,7]
[311140318,1704929462280,-500.0,0.00039178,4]
[311140319,1704929462289,-554.16432577,0.00039178,4]
[311140320,1704929462298,-500.0,0.00039178,4]
[311140321,1704929462313,-500.0,0.00039178,4]
[311140322,1704929462322,-500.0,0.00039178,4]
[311140323,1704929462332,-500.0,0.00039178,4]
[311140324,1704929462341,-500.0,0.00039178,4]
[311140325,1704929462351,-500.0,0.00039178,4]
[311140326,1704929462360,-500.0,0.00039178,4]
[311140327,1704929462370,-500.0,0.00039178,4]
[311140328,1704929462380,-500.0,0.00039178,4]
[311140329,1704929462389,-500.0,0.00039178,4]
[311140330,1704929462398,-500.0,0.00039178,4]
[311140331,1704929462408,-500.0,0.00039178,4]
[311140332,1704929462417,-500.0,0.00039178,4]
[311140333,1704929462427,-500.0,0.00039178,4]
[311140334,1704929462437,-500.0,0.00039178,4]
[311140335,1704929462446,-171.31,0.00039178,4]
[311140336,1704929462455,-500.0,0.00039178,4]
[311140337,1704929462465,-500.0,0.00039178,4]
[311140338,1704929462474,-500.0,0.00039178,4]
[311140339,1704929462484,-285.28,0.00039178,4]
[311140340,1704929462494,-500.0,0.00039178,4]
[311140341,1704929462504,-500.0,0.00039178,4]
[311140342,1704929462514,-382.58,0.00039178,4]
[311140343,1704929462523,-500.0,0.00039178,4]
[311140344,1704929462532,-500.0,0.00039178,4]
[311140345,1704929462542,-476.36,0.00039178,4]
[311140346,1704929462551,-500.0,0.00039178,4]
[311140347,1704929462566,-170.77,0.00039178,4]
[311140348,1704929462575,-500.0,0.00039178,4]
[311140349,1704929462586,-500.0,0.00039178,4]
[311140350,1704929462597,-500.0,0.00039178,4]
[311140351,1704929462607,-627.53,0.00039178,4]
[311140352,1704929462617,-500.0,0.00039178,4]
[311140353,1704929462627,-417.46,0.00039178,4]
[311140354,1704929462637,-500.0,0.00039178,2]
[311140355,1704929462648,-500.0,0.00039178,4]
[311140356,1704929462658,-355.83,0.00039178,4]
[311140357,1704929462668,-500.0,0.00039178,4]
[311140358,1704929462678,-500.0,0.00039178,4]
[311140359,1704929462689,-500.0,0.00039178,4]
[311140360,1704929462698,-500.0,0.00039178,4]
[311140361,1704929462708,-500.0,0.00039178,4]
[311140362,1704929462718,-583.86,0.00039178,4]
[311140363,1704929462727,-478.04,0.00039178,4]
[311140364,1704929462736,-181.75,0.00039178,4]
[311140365,1704929462746,-500.0,0.00039178,4]
[311140366,1704929462756,-500.0,0.00039178,4]
[311140367,1704929462766,-500.0,0.00039178,4]
[311140368,1704929462775,-500.0,0.00039178,4]
[311140369,1704929462785,-1391.02,0.00039178,4]
[311140370,1704929462795,-500.0,0.00039178,4]
[311140371,1704929462809,-500.0,0.00039178,4]
[311140372,1704929462819,-901.49,0.00039178,4]
[311140373,1704929462834,-500.0,0.00039178,4]
[311140374,1704929462848,-500.0,0.00039178,4]
[311140375,1704929462870,-1168.0,0.00039178,4]
[311140376,1704929462887,-500.0,0.00039178,4]
[311140377,1704929462898,-500.0,0.00039178,4]
[311140378,1704929462908,-1104.48,0.00039178,4]
[311140379,1704929462918,-500.0,0.00039178,4]
[311140380,1704929462928,-262.33,0.00039178,4]
[311140381,1704929462938,-1336.04,0.00039178,4]
[311140382,1704929462948,-500.0,0.00039178,4]
[311140383,1704929462958,-1403.81,0.00039178,4]
[311140384,1704929462968,-500.0,0.00039178,4]
[311140385,1704929462978,-216.44,0.00039178,4]
[311140386,1704929462988,-196.38,0.00039178,4]
[311140387,1704929462997,-500.0,0.00039178,4]
[311140388,1704929463006,-500.0,0.00039178,4]
[311140389,1704929463016,-500.0,0.00039178,4]
[311140390,1704929463025,-588.64,0.00039178,4]
[311140391,1704929463035,-6847.32,0.00039178,4]
[311140392,1704929463044,-500.0,0.00039178,4]
[311140393,1704929463056,-500.0,0.00039178,4]
[311140394,1704929463066,-500.0,0.00039178,4]
[311140395,1704929463076,-500.0,0.00039178,4]
[311140396,1704929463086,-1442.46,0.00039178,4]
[311140397,1704929463096,-500.0,0.00039178,4]
[311140398,1704929463106,-791.45,0.00039178,4]
[311140399,1704929463117,-500.0,0.00039178,4]
[311140400,1704929463127,-500.0,0.00039178,4]
[311140401,1704929463137,-1371.84,0.00039178,4]
[311140402,1704929463147,-500.0,0.00039178,4]
[311140403,1704929463157,-214.8650615,0.00039178,4]
[311140404,1704929463167,-674.38,0.00039178,4]
[311140405,1704929463177,-500.0,0.00039178,4]
[311140406,1704929463186,-1399.35,0.00039178,4]
[311140407,1704929463196,-500.0,0.00039178,4]
[311140408,1704929463206,-500.0,0.00039178,4]
[311140409,1704929463216,-500.0,0.00039178,4]
[311140410,1704929463225,-500.0,0.00039178,4]
[311140411,1704929463235,-500.0,0.00039178,4]
[311140412,1704929463246,-500.0,0.00039178,4]
[311140413,1704929463256,-505.9,0.00039178,4]
[311140414,1704929463266,-500.0,0.00039178,4]
[311140415,1704929463276,-500.0,0.00039178,4]
[311140416,1704929463286,-653.23,0.00039178,4]
[311140417,1704929463296,-500.0,0.00039178,4]
[311140418,1704929463309,-500.0,0.00039178,4]
[311140419,1704929463320,-500.0,0.00039178,4]
[311140420,1704929463330,-500.0,0.00039178,4]
[311140421,1704929463339,-500.0,0.00039178,4]
[311140422,1704929463349,-500.0,0.00039178,4]
[311140423,1704929463359,-188.01,0.00039178,4]
[311140424,1704929463369,-500.0,0.00039178,4]
[311140425,1704929463379,-500.0,0.00039178,4]
[311140426,1704929463389,-694.35,0.00039178,4]
[311140427,1704929463400,-500.0,0.00039178,4]
[311140428,1704929463409,-500.0,0.00039178,4]
[311140429,1704929463420,-500.0,0.00039178,4]
[311140430,1704929463429,-500.0,0.00039178,4]
[311140431,1704929463440,-500.0,0.00039178,4]
[311140432,1704929463450,-500.0,0.00039178,4]
[311140433,1704929463460,-500.0,0.00039178,4]
[311140434,1704929463470,-500.0,0.00039178,4]
[311140435,1704929463480,-500.0,0.00039178,4]
[311140436,1704929463490,-800.64,0.00039178,4]
[311140437,1704929463501,-424.97388768,0.00039178,4]
[311140438,1704929463510,-545.35,0.00039178,4]
[311140439,1704929463520,-1377.63,0.00039178,4]
[311140440,1704929463530,-986.83,0.00039178,4]
[311140441,1704929463540,-1114.48,0.00039178,4]
[311140442,1704929463549,-500.0,0.00039178,4]
[311140443,1704929463562,-2234.62,0.00039178,4]
[311140444,1704929463572,-887.56,0.00039178,4]
[311140445,1704929463582,-2704.03,0.00039178,4]
[311140446,1704929463692,-500.0,0.00039178,4]
[311140447,1704929463702,-662.58,0.00039178,4]
[311140448,1704929463712,-562.06,0.00039178,4]
[311140449,1704929463722,-500.0,0.00039178,4]
[311140450,1704929463732,-500.0,0.00039178,4]
[311140451,1704929463741,-500.0,0.00039178,4]
[311140452,1704929463751,-500.0,0.00039178,4]
[311140453,1704929463760,-500.0,0.00039178,4]
[311140454,1704929463771,-669.07,0.00039178,4]
[311140455,1704929463781,-1960.32,0.00039178,4]
[311140456,1704929463791,-500.0,0.00039178,4]
[311140457,1704929463801,-1476.13,0.00039178,4]
[311140458,1704929463815,-967.46,0.00039178,4]
[311140459,1704929463828,-508.27,0.00039178,4]
[311140460,1704929463837,-500.0,0.00039178,4]
[311140461,1704929463847,-500.0,0.00039178,4]
[311140462,1704929463856,-670.39,0.00039178,4]
[311140463,1704929463867,-500.0,0.00039178,4]
[311140464,1704929463877,-557.99695422,0.00039178,4]
[311140465,1704929463887,-500.0,0.00039178,4]
[311140466,1704929463897,-500.0,0.00039178,4]
[311140467,1704929463907,-500.0,0.00039178,4]
[311140468,1704929463917,-1108.5,0.00039178,4]
[311140469,1704929463927,-1012.18,0.00039178,4]
[311140470,1704929463937,-3847.64,0.00039178,4]
[311140471,1704929463948,-1493.63,0.00039178,4]
[311140472,1704929463958,-500.0,0.00039178,4]
[311140473,1704929463968,-500.0,0.00039178,4]
[311140474,1704929463977,-500.0,0.00039178,4]
[311140475,1704929463987,-1517.38,0.00039178,4]
[311140476,1704929463996,-1089.24,0.00039178,4]
[311140477,1704929464007,-500.0,0.00039178,4]
[311140478,1704929464016,-709.16,0.00039178,4]
[311140479,1704929464026,-500.0,0.00039178,4]
[311140480,1704929464035,-500.0,0.00039178,4]
[311140481,1704929464045,-999.05,0.00039178,4]
[311140482,1704929464056,-539.92,0.00039178,4]
[311140483,1704929464065,-500.0,0.00039178,4]
[311140484,1704929464075,-2312.53,0.00039178,4]
[311140485,1704929464085,-1938.93,0.00039178,4]
[311140486,1704929464094,-500.0,0.00039178,4]
[311140487,1704929464103,-500.0,0.00039178,4]
[311140488,1704929464113,-500.0,0.00039178,4]
[311140489,1704929464123,-500.0,0.00039178,4]
[311140490,1704929464132,-500.0,0.00039178,4]
[311140491,1704929464142,-1637.04,0.00039178,4]
[311140492,1704929464152,-500.0,0.00039178,4]
[311140493,1704929464162,-356.22,0.00039178,4]
[311140494,1704929464172,-500.0,0.00039178,4]
[311140495,1704929464182,-500.0,0.00039178,4]
[311140496,1704929464191,-500.0,0.00039178,4]
[311140497,1704929464201,-918.68,0.00039178,4]
[311140498,1704929464214,-734.84,0.00039178,4]
[311140499,1704929464224,-236.77,0.00039178,4]
[311140500,1704929464234,-500.0,0.00039178,4]
[311140501,1704929464244,-500.0,0.00039178,4]
[311140502,1704929464253,-500.0,0.00039178,4]
[311140503,1704929464263,-150.42,0.00039178,4]
[311140504,1704929464273,-1045.89,0.00039178,4]
[311140505,1704929464283,-500.0,0.00039178,4]
[311140506,1704929464293,-732.31,0.00039178,4]
[311140507,1704929464305,-500.0,0.00039178,4]
[311140508,1704929464315,-500.0,0.00039178,4]
[311140509,1704929464324,-1070.3,0.00039178,4]
[311140510,1704929464334,-500.0,0.00039178,4]
[311140511,1704929464344,-500.0,0.00039178,4]
[311140512,1704929464354,-500.0,0.00039178,4]
[311140513,1704929464363,-760.88,0.00039178,4]
[311140514,1704929464372,-500.0,0.00039178,4]
[311140515,1704929464381,-779.41,0.00039178,4]
[311140516,1704929464391,-1339.65,0.00039178,4]
[311140517,1704929464400,-500.0,0.00039178,4]
[311140518,1704929464410,-449.99184037,0.00039178,4]
[311140519,1704929464420,-500.0,0.00039178,4]
[311140520,1704929464430,-2385.17,0.00039178,4]
[311140521,1704929464440,-500.0,0.00039178,4]
[311140522,1704929464449,-500.0,0.00039178,4]
[311140523,1704929464459,-500.0,0.00039178,4]
[311140524,1704929464469,-500.0,0.00039178,4]
[311140525,1704929464479,-666.40111,0.00039198,8]
[311140526,1704929464489,-1000.0,0.00039199,10]
[311140527,1704929464498,-9767.25,0.000392,7]
[311140528,1704929464508,-1000.0,0.000392,30]
[311140529,1704929464517,-152.97219112,0.00039218,7]
[311140530,1704929464526,-152.97219112,0.00039243,7]
[311140531,1704929464535,-8802.10805835,0.00039248,2]
[311140532,1704929464545,-1000.0,0.0003926,2]
[311140533,1704929464557,-153.84,0.00039269,2]
[311140534,1704929464566,-150.0,0.0003929,7]
[311140535,1704929464576,-666.40111,0.00039298,6]
[311140536,1704929464586,-20399.04,0.000393,7]
[311140537,1704929464595,-151.0,0.000393,7]
[311140538,1704929464605,-211.425443,0.000393,7]
[311140539,1704929464615,-50000.0,0.00039321,30]
[311140540,1704929464625,-150.0,0.00039366,2]
[311140541,1704929464634,-586.96,0.00039387,2]
[311140542,1704929464644,-417.61,0.00039387,2]
[311140543,1704929464654,-238.74,0.00039387,2]
[311140544,1704929464663,-217.61,0.00039387,2]
[311140545,1704929464673,-250.11,0.00039387,2]
[311140546,1704929464683,-407.77,0.00039387,2]
[311140547,1704929464693,-417.61,0.00039387,2]
[311140548,1704929464703,-407.77,0.00039387,2]
[311140549,1704929464714,-150.0,0.00039387,2]
[311140550,1704929464723,-417.61,0.00039387,2]
[311140551,1704929464734,-150.0,0.00039387,2]
[311140552,1704929464744,-404.75,0.00039387,2]
[311140553,1704929464754,-417.61,0.00039387,2]
[311140554,1704929464763,-834.78,0.00039387,2]
[311140555,1704929464773,-158.79571379,0.0003939,2]
[311140556,1704929464783,-666.40111,0.00039398,8]
[311140557,1704929464795,-449.19,0.00039452,4]
[311140558,1704929464808,-500.0,0.00039452,4]
[311140559,1704929464826,-623.64,0.00039452,4]
[311140560,1704929464839,-500.0,0.00039452,4]
[311140561,1704929464848,-500.0,0.00039452,2]
[311140562,1704929464858,-500.0,0.00039452,4]
[311140563,1704929464867,-500.0,0.00039452,4]
[311140564,1704929464877,-526.72,0.00039452,4]
[311140565,1704929464887,-246.31,0.00039452,4]
[311140566,1704929464897,-643.95,0.00039452,4]
[311140567,1704929464906,-500.0,0.00039452,4]
[311140568,1704929464916,-500.0,0.00039452,4]
[311140569,1704929464926,-969.81,0.00039452,4]
[311140570,1704929464935,-500.0,0.00039452,4]
[311140571,1704929464944,-198.44,0.00039452,4]
[311140572,1704929464955,-481.04,0.00039452,4]
[311140573,1704929464964,-482.11,0.00039452,4]
[311140574,1704929464974,-500.0,0.00039452,4]
[311140575,1704929464983,-631.55,0.00039452,4]
[311140576,1704929464992,-507.77,0.00039452,4]
[311140577,1704929465002,-500.0,0.00039452,4]
[311140578,1704929465012,-500.0,0.00039452,4]
[311140579,1704929465022,-539.08,0.00039452,4]
[311140580,1704929465033,-500.0,0.00039452,4]
[311140581,1704929465044,-500.0,0.00039452,4]
[311140582,1704929465058,-500.0,0.00039452,4]
[311140583,1704929465069,-500.0,0.00039452,2]
[311140584,1704929465080,-500.0,0.00039452,4]
[311140585,1704929465091,-500.0,0.00039452,4]
[311140586,1704929465102,-500.0,0.00039452,4]
[311140587,1704929465112,-500.0,0.00039452,4]
[311140588,1704929465123,-500.0,0.00039452,4]
[311140589,1704929465134,-2076.04,0.00039452,4]
[311140590,1704929465254,-500.0,0.00039452,4]
[311140591,1704929465265,-500.0,0.00039452,4]
[311140592,1704929465276,-500.0,0.00039452,4]
[311140593,1704929465287,-500.0,0.00039452,4]
[311140594,1704929465298,-1000.0,0.00039452,2]
[311140595,1704929465314,-500.0,0.00039452,4]
[311140596,1704929465325,-244.28,0.00039452,4]
[311140597,1704929465336,-500.0,0.00039452,4]
[311140598,1704929465346,-500.0,0.00039452,4]
[311140599,1704929465357,-500.0,0.00039452,4]
[311140600,1704929465367,-500.0,0.00039452,4]
[311140601,1704929465376,-500.0,0.00039452,4]
[311140602,1704929465386,-500.0,0.00039452,4]
[311140603,1704929465397,-500.0,0.00039452,7]
[311140604,1704929465407,-500.0,0.00039452,4]
[311140605,1704929465417,-500.0,0.00039452,4]
[311140606,1704929465427,-500.0,0.00039452,4]
[311140607,1704929465436,-500.0,0.00039452,4]
[311140608,1704929465446,-500.0,0.00039452,4]
[311140609,1704929465455,-500.0,0.00039452,4]
[311140610,1704929465465,-500.0,0.00039452,4]
[311140611,1704929465475,-378.96,0.00039452,4]
[311140612,1704929465485,-613.33,0.00039452,4]
[311140613,1704929465495,-500.0,0.00039452,4]
[311140614,1704929465505,-500.0,0.00039452,4]
[311140615,1704929465516,-500.0,0.00039452,4]
[311140616,1704929465525,-477.11299958,0.00039452,4]
[311140617,1704929465535,-500.0,0.00039452,4]
[311140618,1704929465545,-500.0,0.00039452,4]
[311140619,1704929465558,-500.0,0.00039452,4]
[311140620,1704929465567,-500.0,0.00039452,4]
[311140621,1704929465577,-500.0,0.00039452,4]
[311140622,1704929465587,-500.0,0.00039452,4]
[311140623,1704929465597,-500.0,0.00039452,4]
[311140624,1704929465607,-500.0,0.00039452,4]
[311140625,1704929465618,-500.0,0.00039452,4]
[311140626,1704929465628,-500.0,0.00039452,4]
[311140627,1704929465638,-500.0,0.00039452,4]
[311140628,1704929465648,-500.0,0.00039452,4]
[311140629,1704929465659,-500.0,0.00039452,4]
[311140630,1704929465668,-500.0,0.00039452,4]
[311140631,1704929465678,-627.53,0.00039452,4]
[311140632,1704929465688,-500.0,0.00039452,4]
[311140633,1704929465698,-500.0,0.00039452,2]
[311140634,1704929465708,-500.0,0.00039452,4]
[311140635,1704929465718,-384.84,0.00039452,4]
[311140636,1704929465728,-263.33,0.00039452,4]
[311140637,1704929465738,-500.0,0.00039452,4]
[311140638,1704929465747,-500.0,0.00039452,4]
[311140639,1704929465757,-153.73,0.00039452,4]
[311140640,1704929465768,-500.0,0.00039452,4]
[311140641,1704929465778,-500.0,0.00039452,4]
[311140642,1704929465788,-500.0,0.00039452,4]
[311140643,1704929465797,-500.0,0.00039452,4]
[311140644,1704929465811,-1391.02,0.00039452,4]
[311140645,1704929465823,-500.0,0.00039452,4]
[311140646,1704929465834,-500.0,0.00039452,4]
[311140647,1704929465844,-901.49,0.00039452,4]
[311140648,1704929465854,-304.18,0.00039452,4]
[311140649,1704929465866,-500.0,0.00039452,4]
[311140650,1704929465876,-1168.0,0.00039452,4]
[311140651,1704929465886,-500.0,0.00039452,4]
[311140652,1704929465897,-500.0,0.00039452,4]
[311140653,1704929465907,-1104.48,0.00039452,4]
[311140654,1704929465917,-202.03,0.00039452,4]
[311140655,1704929465926,-1336.04,0.00039452,4]
[311140656,1704929465937,-500.0,0.00039452,4]
[311140657,1704929465961,-1403.81,0.00039452,4]
[311140658,1704929465978,-500.0,0.00039452,4]
[311140659,1704929466000,-500.0,0.00039452,4]
[311140660,1704929466019,-500.0,0.00039452,4]
[311140661,1704929466036,-500.0,0.00039452,4]
[311140662,1704929466054,-588.64,0.00039452,4]
[311140663,1704929466073,-6847.32,0.00039452,4]
[311140664,1704929466092,-500.0,0.00039452,4]
[311140665,1704929466111,-500.0,0.00039452,4]
[311140666,1704929466129,-500.0,0.00039452,4]
[311140667,1704929466148,-500.0,0.00039452,4]
[311140668,1704929466167,-1442.46,0.00039452,4]
[311140669,1704929466181,-500.0,0.00039452,4]
[311140670,1704929466199,-791.45,0.00039452,4]
[311140671,1704929466215,-500.0,0.00039452,4]
[311140672,1704929466230,-500.0,0.00039452,4]
[311140673,1704929466246,-1371.84,0.00039452,4]
[311140674,1704929466263,-500.0,0.00039452,4]
[311140675,1704929466280,-674.38,0.00039452,4]
[311140676,1704929466297,-500.0,0.00039452,4]
[311140677,1704929466317,-1399.35,0.00039452,4]
[311140678,1704929466334,-339.56,0.00039452,4]
[311140679,1704929466350,-500.0,0.00039452,4]
[311140680,1704929466366,-500.0,0.00039452,4]
[311140681,1704929466383,-500.0,0.00039452,4]
[311140682,1704929466399,-500.0,0.00039452,4]
[311140683,1704929466416,-500.0,0.00039452,4]
[311140684,1704929466433,-235.52,0.00039452,4]
[311140685,1704929466450,-500.0,0.00039452,4]
[311140686,1704929466467,-653.23,0.00039452,4]
[311140687,1704929466483,-500.0,0.00039452,4]
[311140688,1704929466500,-500.0,0.00039452,4]
[311140689,1704929466517,-500.0,0.00039452,4]
[311140690,1704929466534,-500.0,0.00039452,4]
[311140691,1704929466550,-207.8735,0.00039452,4]
[311140692,1704929466570,-500.0,0.00039452,4]
[311140693,1704929466588,-500.0,0.00039452,4]
[311140694,1704929466606,-194.1800221,0.00039452,4]
[311140695,1704929466617,-694.35,0.00039452,4]
[311140696,1704929466627,-500.0,0.00039452,4]
[311140697,1704929466637,-500.0,0.00039452,4]
[311140698,1704929466648,-608.75,0.00039452,4]
[311140699,1704929466658,-500.0,0.00039452,4]
[311140700,1704929466668,-500.0,0.00039452,4]
[311140701,1704929466678,-500.0,0.00039452,4]
[311140702,1704929466688,-500.0,0.00039452,4]
[311140703,1704929466698,-500.0,0.00039452,4]
[311140704,1704929466708,-500.0,0.00039452,4]
[311140705,1704929466718,-800.64,0.00039452,4]
[311140706,1704929466728,-545.35,0.00039452,4]
[311140707,1704929466738,-1377.63,0.00039452,4]
[311140708,1704929466748,-986.83,0.00039452,4]
[311140709,1704929466758,-1114.48,0.00039452,4]
[311140710,1704929466769,-500.0,0.00039452,4]
[311140711,1704929466779,-2234.62,0.00039452,4]
[311140712,1704929466790,-887.56,0.00039452,4]
[311140713,1704929466800,-2704.03,0.00039452,4]
[311140714,1704929466817,-500.0,0.00039452,4]
[311140715,1704929466839,-662.58,0.00039452,4]
[311140716,1704929466849,-562.06,0.00039452,4]
[311140717,1704929466859,-500.0,0.00039452,4]
[311140718,1704929466870,-500.0,0.00039452,4]
[311140719,1704929466880,-500.0,0.00039452,4]
[311140720,1704929466889,-500.0,0.00039452,4]
[311140721,1704929466899,-500.0,0.00039452,4]
[311140722,1704929467097,-669.07,0.00039452,4]
[311140723,1704929467206,-1960.32,0.00039452,4]
[311140724,1704929467222,-500.0,0.00039452,4]
[311140725,1704929467233,-1476.13,0.00039452,4]
[311140726,1704929467242,-967.46,0.00039452,4]
[311140727,1704929467251,-508.27,0.00039452,4]
[311140728,1704929467260,-500.0,0.00039452,4]
[311140729,1704929467270,-500.0,0.00039452,4]
[311140730,1704929467279,-670.39,0.00039452,4]
[311140731,1704929467289,-500.0,0.00039452,4]
[311140732,1704929467299,-326.18,0.00039452,4]
[311140733,1704929467311,-211.14,0.00039452,4]
[311140734,1704929467320,-500.0,0.00039452,4]
[311140735,1704929467330,-1108.5,0.00039452,4]